[Event "Titled Tuesday Blitz January 03 Late 2023"]
[White "Batista, Renato Luiz"]
[Black "ArchibaldCerveza29"]
[WhiteFideId "2106540"]
[WhiteElo "2174"]
[BlackElo "2509"]
[Result "0-1"]
[Round "04"]
[TimeControl "180+2"]
[Date "2023.01.03"]
[WhiteClock "0:00:04"]
[BlackClock "0:00:07"]

1. e4 {[%clk 0:03:00]}  e5 {[%clk 0:02:57]} 2. Nf3 {[%clk 0:02:58]}  Nc6 {[%clk 0:02:56]} 3. Bc4 {[%clk 0:02:49]}  Nf6 {[%clk 0:02:56]} 4. d3 {[%clk 0:02:49]}  Be7 {[%clk 0:02:56]} 5. O-O {[%clk 0:02:47]}  O-O {[%clk 0:02:57]} 6. c3 {[%clk 0:02:46]}  d6 {[%clk 0:02:55]} 7. Bg5 {[%clk 0:02:43]}  Na5 {[%clk 0:02:53]} 8. Bb5 {[%clk 0:02:42]}  a6 {[%clk 0:02:54]} 9. Ba4 {[%clk 0:02:42]}  b5 {[%clk 0:02:55]} 10. Bc2 {[%clk 0:02:43]}  c5 {[%clk 0:02:55]} 11. Nbd2 {[%clk 0:02:42]}  Re8 {[%clk 0:02:55]} 12. Re1 {[%clk 0:02:41]}  h6 {[%clk 0:02:55]} 13. Bh4 {[%clk 0:02:24]}  Nc6 {[%clk 0:02:55]} 14. a4 {[%clk 0:02:22]}  Bb7 {[%clk 0:02:49]} 15. Nf1 {[%clk 0:02:10]}  d5 {[%clk 0:02:39]} 16. Ne3 {[%clk 0:02:07]}  d4 {[%clk 0:02:24]} 17. Nf5 {[%clk 0:02:06]}  Bf8 {[%clk 0:02:24]} 18. cxd4 {[%clk 0:01:56]}  cxd4 {[%clk 0:02:18]} 19. Bb3 {[%clk 0:01:46]}  g6 {[%clk 0:02:17]} 20. Ng3 {[%clk 0:01:35]}  Bg7 {[%clk 0:02:01]} 21. Rc1 {[%clk 0:01:21]}  Rc8 {[%clk 0:01:59]} 22. Rc5 {[%clk 0:00:52]}  Qd6 {[%clk 0:01:41]} 23. Qc1 {[%clk 0:00:34]}  Na5 {[%clk 0:01:39]} 24. Rxc8 {[%clk 0:00:33]}  Rxc8 {[%clk 0:01:39]} 25. Qd1 {[%clk 0:00:33]}  g5 {[%clk 0:01:15]} 26. Nf5 {[%clk 0:00:33]}  Qb4 {[%clk 0:01:11]} 27. Bxf7+ {[%clk 0:00:26]}  Kxf7 {[%clk 0:01:10]} 28. Bxg5 {[%clk 0:00:26]}  Rg8 {[%clk 0:00:38]} 29. Nxe5+ {[%clk 0:00:25]}  Ke8 {[%clk 0:00:33]} 30. Nxg7+ {[%clk 0:00:25]}  Rxg7 {[%clk 0:00:33]} 31. Bxf6 {[%clk 0:00:25]}  Rf7 {[%clk 0:00:20]} 32. Nxf7 {[%clk 0:00:22]}  Kxf7 {[%clk 0:00:21]} 33. e5 {[%clk 0:00:21]}  Nb3 {[%clk 0:00:15]} 34. Qh5+ {[%clk 0:00:20]}  Kf8 {[%clk 0:00:14]} 35. Qxh6+ {[%clk 0:00:20]}  Ke8 {[%clk 0:00:15]} 36. Qh8+ {[%clk 0:00:10]}  Kd7 {[%clk 0:00:15]} 37. Qg7+ {[%clk 0:00:10]}  Kc6 {[%clk 0:00:15]} 38. Rf1 {[%clk 0:00:10]}  Nd2 {[%clk 0:00:14]} 39. Rc1+ {[%clk 0:00:10]}  Kb6 {[%clk 0:00:10]} 40. Qc7+ {[%clk 0:00:09]}  Ka7 {[%clk 0:00:11]} 41. e6 {[%clk 0:00:06]}  Nb3 {[%clk 0:00:10]} 42. Rf1 {[%clk 0:00:06]}  bxa4 {[%clk 0:00:08]} 43. e7 {[%clk 0:00:05]}  Qb5 {[%clk 0:00:08]} 44. Qd8 {[%clk 0:00:05]}  Qd5 {[%clk 0:00:08]} 45. e8=Q {[%clk 0:00:04]}  Qxg2# {[%clk 0:00:07]} 0-1


[Site "https://www.chess.com"]

[Event "Titled Tuesday Blitz January 03 Late 2023"]
[White "Almagro Mazariegos, Sebastian"]
[Black "Smith, Garrett L"]
[WhiteFideId "2221640"]
[BlackFideId "2024829"]
[WhiteElo "2280"]
[BlackElo "2047"]
[Result "0-1"]
[Round "04"]
[TimeControl "180+2"]
[Date "2023.01.03"]
[WhiteClock "0:01:06"]
[BlackClock "0:00:57"]

1. e4 {[%clk 0:03:00]}  c5 {[%clk 0:02:59]} 2. Nf3 {[%clk 0:03:00]}  Nc6 {[%clk 0:03:00]} 3. d4 {[%clk 0:02:59]}  cxd4 {[%clk 0:03:00]} 4. Nxd4 {[%clk 0:03:00]}  e5 {[%clk 0:03:01]} 5. Nb5 {[%clk 0:02:59]}  d6 {[%clk 0:03:01]} 6. c4 {[%clk 0:02:59]}  Be7 {[%clk 0:03:01]} 7. N1c3 {[%clk 0:02:59]}  a6 {[%clk 0:03:01]} 8. Na3 {[%clk 0:03:00]}  f5 {[%clk 0:03:02]} 9. exf5 {[%clk 0:02:59]}  Bxf5 {[%clk 0:03:01]} 10. Bd3 {[%clk 0:03:00]}  Be6 {[%clk 0:03:01]} 11. O-O {[%clk 0:02:59]}  Nf6 {[%clk 0:03:01]} 12. Bg5 {[%clk 0:02:58]}  O-O {[%clk 0:03:01]} 13. Nc2 {[%clk 0:02:57]}  Rc8 {[%clk 0:02:57]} 14. Ne3 {[%clk 0:02:57]}  Nd4 {[%clk 0:02:50]} 15. Rc1 {[%clk 0:02:51]}  Kh8 {[%clk 0:02:48]} 16. b3 {[%clk 0:02:50]}  b5 {[%clk 0:02:21]} 17. cxb5 {[%clk 0:02:44]}  axb5 {[%clk 0:02:20]} 18. Nxb5 {[%clk 0:02:35]}  Rxc1 {[%clk 0:02:18]} 19. Qxc1 {[%clk 0:02:36]}  Nxb5 {[%clk 0:01:59]} 20. Bxb5 {[%clk 0:02:37]}  Qa5 {[%clk 0:01:59]} 21. Ba4 {[%clk 0:02:09]}  d5 {[%clk 0:01:57]} 22. Qe1 {[%clk 0:01:58]}  Bb4 {[%clk 0:01:52]} 23. Qd1 {[%clk 0:01:51]}  Ne4 {[%clk 0:01:50]} 24. Bh4 {[%clk 0:01:47]}  Nc3 {[%clk 0:01:23]} 25. Qc2 {[%clk 0:01:26]}  d4 {[%clk 0:01:20]} 26. Nd1 {[%clk 0:01:17]}  Bf5 {[%clk 0:01:17]} 27. Qb2 {[%clk 0:01:09]}  Nxa4 {[%clk 0:01:05]} 28. bxa4 {[%clk 0:01:09]}  Qxa4 {[%clk 0:01:05]} 29. f4 {[%clk 0:01:06]}  Bd3 {[%clk 0:00:57]} 0-1


[Site "https://www.chess.com"]

[Event "Titled Tuesday Blitz January 03 Late 2023"]
[White "Rian, Kapriaga"]
[Black "Hernandez Sanchez, Elvis De La Caridad"]
[WhiteFideId "7103263"]
[BlackFideId "6400353"]
[WhiteElo "2089"]
[BlackElo "2243"]
[Result "1-0"]
[Round "04"]
[TimeControl "180+2"]
[Date "2023.01.03"]
[WhiteClock "0:00:06"]
[BlackClock "0:00:02"]

1. d4 {[%clk 0:03:00]}  Nf6 {[%clk 0:02:57]} 2. Nf3 {[%clk 0:03:01]}  g6 {[%clk 0:02:55]} 3. Bf4 {[%clk 0:03:00]}  Bg7 {[%clk 0:02:53]} 4. e3 {[%clk 0:03:00]}  O-O {[%clk 0:02:53]} 5. Be2 {[%clk 0:03:01]}  d6 {[%clk 0:02:53]} 6. h3 {[%clk 0:03:01]}  Nbd7 {[%clk 0:02:53]} 7. O-O {[%clk 0:03:01]}  Qe8 {[%clk 0:02:53]} 8. Bh2 {[%clk 0:03:01]}  e5 {[%clk 0:02:52]} 9. c4 {[%clk 0:03:01]}  Qe7 {[%clk 0:02:47]} 10. Nc3 {[%clk 0:03:01]}  c6 {[%clk 0:02:47]} 11. a3 {[%clk 0:02:56]}  Re8 {[%clk 0:02:37]} 12. Re1 {[%clk 0:02:56]}  h5 {[%clk 0:02:32]} 13. b4 {[%clk 0:02:54]}  Nh7 {[%clk 0:02:25]} 14. c5 {[%clk 0:02:52]}  dxc5 {[%clk 0:02:23]} 15. bxc5 {[%clk 0:02:32]}  Ng5 {[%clk 0:02:19]} 16. Nxg5 {[%clk 0:02:24]}  Qxg5 {[%clk 0:02:19]} 17. Ne4 {[%clk 0:02:24]}  Qe7 {[%clk 0:02:17]} 18. Nd6 {[%clk 0:02:24]}  Rf8 {[%clk 0:02:14]} 19. Rb1 {[%clk 0:02:21]}  b6 {[%clk 0:02:06]} 20. Nxc8 {[%clk 0:02:06]}  Raxc8 {[%clk 0:02:04]} 21. cxb6 {[%clk 0:02:06]}  axb6 {[%clk 0:02:04]} 22. Qa4 {[%clk 0:02:03]}  b5 {[%clk 0:01:46]} 23. Qb3 {[%clk 0:01:59]}  Nb6 {[%clk 0:01:40]} 24. dxe5 {[%clk 0:01:57]}  Bxe5 {[%clk 0:01:40]} 25. Bxe5 {[%clk 0:01:56]}  Qxe5 {[%clk 0:01:41]} 26. Bf3 {[%clk 0:01:52]}  Na4 {[%clk 0:01:39]} 27. Rbc1 {[%clk 0:01:46]}  Qf6 {[%clk 0:01:34]} 28. Rc2 {[%clk 0:01:45]}  Nb6 {[%clk 0:01:25]} 29. Rec1 {[%clk 0:01:44]}  Nc4 {[%clk 0:01:25]} 30. a4 {[%clk 0:01:43]}  Rb8 {[%clk 0:01:22]} 31. axb5 {[%clk 0:01:42]}  cxb5 {[%clk 0:01:23]} 32. Bd5 {[%clk 0:01:36]}  Rfc8 {[%clk 0:01:12]} 33. e4 {[%clk 0:01:32]}  Qd4 {[%clk 0:01:08]} 34. Qf3 {[%clk 0:01:27]}  Rc7 {[%clk 0:01:01]} 35. Qg3 {[%clk 0:01:19]}  Qb6 {[%clk 0:00:51]} 36. Bxc4 {[%clk 0:01:08]}  bxc4 {[%clk 0:00:52]} 37. Rxc4 {[%clk 0:01:08]}  Rxc4 {[%clk 0:00:50]} 38. Rxc4 {[%clk 0:01:08]}  Rd8 {[%clk 0:00:46]} 39. Rc1 {[%clk 0:01:02]}  Qd6 {[%clk 0:00:43]} 40. e5 {[%clk 0:01:00]}  Qe6 {[%clk 0:00:38]} 41. Rf1 {[%clk 0:00:56]}  Kg7 {[%clk 0:00:35]} 42. f4 {[%clk 0:00:56]}  Qf5 {[%clk 0:00:35]} 43. Kh2 {[%clk 0:00:51]}  Rd2 {[%clk 0:00:34]} 44. Qe3 {[%clk 0:00:47]}  Rd3 {[%clk 0:00:30]} 45. Qe2 {[%clk 0:00:42]}  Rc3 {[%clk 0:00:29]} 46. Qb2 {[%clk 0:00:37]}  Rc2 {[%clk 0:00:27]} 47. Qd4 {[%clk 0:00:36]}  Kh7 {[%clk 0:00:21]} 48. Ra1 {[%clk 0:00:34]}  Qe6 {[%clk 0:00:18]} 49. Qe4 {[%clk 0:00:26]}  Qc6 {[%clk 0:00:17]} 50. Qxc6 {[%clk 0:00:25]}  Rxc6 {[%clk 0:00:18]} 51. Ra7 {[%clk 0:00:24]}  Kg8 {[%clk 0:00:17]} 52. Kg3 {[%clk 0:00:23]}  Rc2 {[%clk 0:00:17]} 53. Rb7 {[%clk 0:00:21]}  Rd2 {[%clk 0:00:16]} 54. Re7 {[%clk 0:00:21]}  Rd3+ {[%clk 0:00:12]} 55. Kh4 {[%clk 0:00:20]}  Rd2 {[%clk 0:00:13]} 56. g3 {[%clk 0:00:20]}  Re2 {[%clk 0:00:11]} 57. Kg5 {[%clk 0:00:18]}  Re3 {[%clk 0:00:11]} 58. g4 {[%clk 0:00:18]}  Rxh3 {[%clk 0:00:11]} 59. Kf6 {[%clk 0:00:16]}  hxg4 {[%clk 0:00:11]} 60. Rxf7 {[%clk 0:00:15]}  Rh6 {[%clk 0:00:07]} 61. Rg7+ {[%clk 0:00:11]}  Kh8 {[%clk 0:00:06]} 62. Ra7 {[%clk 0:00:11]}  g5+ {[%clk 0:00:04]} 63. Kxg5 {[%clk 0:00:11]}  Rb6 {[%clk 0:00:03]} 64. Kxg4 {[%clk 0:00:10]}  Kg8 {[%clk 0:00:03]} 65. f5 {[%clk 0:00:10]}  Kf8 {[%clk 0:00:03]} 66. Kg5 {[%clk 0:00:10]}  Ke8 {[%clk 0:00:02]} 67. e6 {[%clk 0:00:10]}  Kf8 {[%clk 0:00:02]} 68. Kf6 {[%clk 0:00:09]}  Kg8 {[%clk 0:00:02]} 69. Rg7+ {[%clk 0:00:08]}  Kf8 {[%clk 0:00:02]} 70. Rc7 {[%clk 0:00:07]}  Ke8 {[%clk 0:00:02]} 71. Rc8# {[%clk 0:00:06]} 1-0


[Site "https://www.chess.com"]

[Event "Titled Tuesday Blitz January 03 Late 2023"]
[White "Wieczorek, Zbigniew"]
[Black "Guevara Sanchez, Erick Marvin"]
[WhiteFideId "1102001"]
[BlackFideId "6700136"]
[WhiteElo "2150"]
[BlackElo "2073"]
[Result "1-0"]
[Round "04"]
[TimeControl "180+2"]
[Date "2023.01.03"]
[WhiteClock "0:00:36"]
[BlackClock "0:00:05"]

1. Nf3 {[%clk 0:02:59]}  Nf6 {[%clk 0:02:58]} 2. d4 {[%clk 0:02:58]}  e6 {[%clk 0:02:58]} 3. c4 {[%clk 0:02:58]}  b6 {[%clk 0:02:58]} 4. Nc3 {[%clk 0:02:58]}  Bb4 {[%clk 0:02:57]} 5. g3 {[%clk 0:02:55]}  Ba6 {[%clk 0:02:54]} 6. Qb3 {[%clk 0:02:50]}  Bxc3+ {[%clk 0:02:52]} 7. Qxc3 {[%clk 0:02:50]}  Bb7 {[%clk 0:02:51]} 8. Bg2 {[%clk 0:02:49]}  O-O {[%clk 0:02:48]} 9. O-O {[%clk 0:02:46]}  d5 {[%clk 0:02:41]} 10. b3 {[%clk 0:02:43]}  Ne4 {[%clk 0:02:40]} 11. Qc2 {[%clk 0:02:42]}  c5 {[%clk 0:02:39]} 12. dxc5 {[%clk 0:02:41]}  bxc5 {[%clk 0:02:36]} 13. cxd5 {[%clk 0:02:37]}  exd5 {[%clk 0:02:34]} 14. Bb2 {[%clk 0:02:37]}  Nd7 {[%clk 0:02:20]} 15. Rad1 {[%clk 0:02:28]}  d4 {[%clk 0:02:16]} 16. Nxd4 {[%clk 0:02:25]}  cxd4 {[%clk 0:02:10]} 17. Bxe4 {[%clk 0:02:24]}  Rc8 {[%clk 0:02:00]} 18. Bxh7+ {[%clk 0:01:59]}  Kh8 {[%clk 0:01:58]} 19. Qb1 {[%clk 0:02:00]}  Nf6 {[%clk 0:01:37]} 20. Bf5 {[%clk 0:01:54]}  Qd5 {[%clk 0:01:08]} 21. f3 {[%clk 0:01:53]}  Rcd8 {[%clk 0:01:04]} 22. Bxd4 {[%clk 0:01:49]}  Qb5 {[%clk 0:00:54]} 23. Bd3 {[%clk 0:01:21]}  Qa5 {[%clk 0:00:50]} 24. Qb2 {[%clk 0:01:18]}  Qg5 {[%clk 0:00:26]} 25. Bf2 {[%clk 0:01:06]}  Nh5 {[%clk 0:00:24]} 26. Qa3 {[%clk 0:00:54]}  a6 {[%clk 0:00:15]} 27. Qc5 {[%clk 0:00:47]}  Qxc5 {[%clk 0:00:07]} 28. Bxc5 {[%clk 0:00:45]}  Nf6 {[%clk 0:00:07]} 29. Bxf8 {[%clk 0:00:44]}  Rxf8 {[%clk 0:00:07]} 30. Bc4 {[%clk 0:00:43]}  Ra8 {[%clk 0:00:08]} 31. Bxf7 {[%clk 0:00:42]}  Rf8 {[%clk 0:00:03]} 32. Bg6 {[%clk 0:00:42]}  Kg8 {[%clk 0:00:02]} 33. e4 {[%clk 0:00:41]}  Ne8 {[%clk 0:00:01]} 34. Rd8 {[%clk 0:00:39]}  Nf6 {[%clk 0:00:02]} 35. Rxf8+ {[%clk 0:00:38]}  Kxf8 {[%clk 0:00:03]} 36. Rd1 {[%clk 0:00:37]}  Ke7 {[%clk 0:00:04]} 37. Bf5 {[%clk 0:00:36]}  Nd7 {[%clk 0:00:05]} 38. Rxd7+ {[%clk 0:00:36]} 1-0


[Site "https://www.chess.com"]

[Event "Titled Tuesday Blitz January 03 Late 2023"]
[White "Sloan, Julia Elizabeth"]
[Black "Lock, Gavin R"]
[WhiteFideId "2018950"]
[BlackFideId "408646"]
[WhiteElo "2087"]
[BlackElo "2083"]
[Result "1/2-1/2"]
[Round "04"]
[TimeControl "180+2"]
[Date "2023.01.03"]
[WhiteClock "0:00:33"]
[BlackClock "0:00:03"]

1. d4 {[%clk 0:03:00]}  d5 {[%clk 0:02:56]} 2. c4 {[%clk 0:02:59]}  e6 {[%clk 0:02:56]} 3. Nc3 {[%clk 0:02:58]}  a6 {[%clk 0:02:57]} 4. Nf3 {[%clk 0:02:52]}  dxc4 {[%clk 0:02:53]} 5. a4 {[%clk 0:02:48]}  Nc6 {[%clk 0:02:52]} 6. e4 {[%clk 0:02:46]}  Na5 {[%clk 0:02:52]} 7. Be3 {[%clk 0:02:38]}  c6 {[%clk 0:02:40]} 8. Ne5 {[%clk 0:02:33]}  b5 {[%clk 0:02:25]} 9. Qf3 {[%clk 0:02:33]}  Nf6 {[%clk 0:02:21]} 10. Nxf7 {[%clk 0:02:33]}  Kxf7 {[%clk 0:02:17]} 11. e5 {[%clk 0:02:33]}  Bb4 {[%clk 0:01:50]} 12. exf6 {[%clk 0:02:28]}  Qxf6 {[%clk 0:01:44]} 13. Qg3 {[%clk 0:02:25]}  Re8 {[%clk 0:01:05]} 14. Be2 {[%clk 0:02:24]}  Kg8 {[%clk 0:00:58]} 15. O-O {[%clk 0:02:21]}  Nb3 {[%clk 0:00:59]} 16. Rad1 {[%clk 0:02:19]}  Bb7 {[%clk 0:00:46]} 17. Bf3 {[%clk 0:02:19]}  Bxc3 {[%clk 0:00:28]} 18. bxc3 {[%clk 0:02:17]}  h6 {[%clk 0:00:25]} 19. Be4 {[%clk 0:02:15]}  Rad8 {[%clk 0:00:21]} 20. f4 {[%clk 0:02:10]}  Rf8 {[%clk 0:00:18]} 21. Rde1 {[%clk 0:02:04]}  Ba8 {[%clk 0:00:18]} 22. Qg4 {[%clk 0:01:37]}  c5 {[%clk 0:00:17]} 23. Bxa8 {[%clk 0:01:33]}  Rxa8 {[%clk 0:00:18]} 24. dxc5 {[%clk 0:01:33]}  Qxc3 {[%clk 0:00:14]} 25. Qxe6+ {[%clk 0:01:31]}  Kh8 {[%clk 0:00:14]} 26. axb5 {[%clk 0:01:08]}  axb5 {[%clk 0:00:14]} 27. Bc1 {[%clk 0:01:06]}  Rae8 {[%clk 0:00:11]} 28. Qxe8 {[%clk 0:01:03]}  Rxe8 {[%clk 0:00:12]} 29. Rxe8+ {[%clk 0:01:02]}  Kh7 {[%clk 0:00:13]} 30. c6 {[%clk 0:00:56]}  Qd4+ {[%clk 0:00:03]} 31. Be3 {[%clk 0:00:51]}  Qd6 {[%clk 0:00:02]} 32. Rc8 {[%clk 0:00:44]}  Qe6 {[%clk 0:00:03]} 33. Rc7 {[%clk 0:00:36]}  Qxe3+ {[%clk 0:00:02]} 34. Kh1 {[%clk 0:00:36]}  Qb6 {[%clk 0:00:01]} 35. Rc8 {[%clk 0:00:34]}  Qa6 {[%clk 0:00:02]} 36. Rc7 {[%clk 0:00:33]}  Qb6 {[%clk 0:00:02]} 37. Rc8 {[%clk 0:00:33]}  Qa6 {[%clk 0:00:02]} 38. Rc7 {[%clk 0:00:33]}  Qb6 {[%clk 0:00:03]} 1/2-1/2


[Site "https://www.chess.com"]

[Event "Titled Tuesday Blitz January 03 Late 2023"]
[White "Schill, William"]
[Black "Van den Dikkenberg, Erik"]
[WhiteFideId "2016710"]
[BlackFideId "1005880"]
[WhiteElo "2147"]
[BlackElo "2091"]
[Result "0-1"]
[Round "04"]
[TimeControl "180+2"]
[Date "2023.01.03"]
[WhiteClock "0:00:03"]
[BlackClock "0:01:34"]

1. e4 {[%clk 0:03:00]}  c5 {[%clk 0:02:59]} 2. Nf3 {[%clk 0:03:00]}  d6 {[%clk 0:02:59]} 3. d4 {[%clk 0:03:00]}  cxd4 {[%clk 0:03:00]} 4. Nxd4 {[%clk 0:03:00]}  Nf6 {[%clk 0:03:01]} 5. Nc3 {[%clk 0:03:00]}  a6 {[%clk 0:03:02]} 6. Bg5 {[%clk 0:03:00]}  e6 {[%clk 0:03:02]} 7. f4 {[%clk 0:03:00]}  Nc6 {[%clk 0:03:02]} 8. Nf3 {[%clk 0:02:38]}  Qb6 {[%clk 0:03:00]} 9. Qd2 {[%clk 0:02:27]}  Qxb2 {[%clk 0:02:41]} 10. Rb1 {[%clk 0:02:27]}  Qa3 {[%clk 0:02:41]} 11. e5 {[%clk 0:02:20]}  Nd5 {[%clk 0:02:20]} 12. Nxd5 {[%clk 0:02:09]}  exd5 {[%clk 0:02:20]} 13. Qxd5 {[%clk 0:01:39]}  Be6 {[%clk 0:02:19]} 14. Qd3 {[%clk 0:01:18]}  Qxa2 {[%clk 0:02:15]} 15. Rxb7 {[%clk 0:00:40]}  d5 {[%clk 0:01:59]} 16. Qb3 {[%clk 0:00:19]}  Qa1+ {[%clk 0:01:52]} 17. Kf2 {[%clk 0:00:18]}  Bc5+ {[%clk 0:01:49]} 18. Kg3 {[%clk 0:00:17]}  O-O {[%clk 0:01:42]} 19. Rc7 {[%clk 0:00:05]}  Nd4 {[%clk 0:01:38]} 20. Nxd4 {[%clk 0:00:03]}  Qe1+ {[%clk 0:01:34]} 0-1


[Site "https://www.chess.com"]

[Event "Titled Tuesday Blitz January 03 Late 2023"]
[White "qiaohu_henry"]
[Black "Lutz, Igor Oscar"]
[BlackFideId "2110806"]
[WhiteElo "2253"]
[BlackElo "1969"]
[Result "1-0"]
[Round "04"]
[TimeControl "180+2"]
[Date "2023.01.03"]
[WhiteClock "0:00:17"]
[BlackClock "0:00:06"]

1. d4 {[%clk 0:03:00]}  d5 {[%clk 0:03:00]} 2. Bf4 {[%clk 0:02:59]}  Nf6 {[%clk 0:03:00]} 3. e3 {[%clk 0:03:00]}  c5 {[%clk 0:02:59]} 4. dxc5 {[%clk 0:03:00]}  Nc6 {[%clk 0:02:54]} 5. Nf3 {[%clk 0:02:57]}  Qa5+ {[%clk 0:02:44]} 6. c3 {[%clk 0:02:52]}  Qxc5 {[%clk 0:02:42]} 7. h3 {[%clk 0:02:46]}  Bf5 {[%clk 0:02:28]} 8. Be2 {[%clk 0:02:42]}  e6 {[%clk 0:02:25]} 9. Nbd2 {[%clk 0:02:39]}  Qb6 {[%clk 0:02:25]} 10. Nb3 {[%clk 0:02:37]}  Be7 {[%clk 0:02:21]} 11. O-O {[%clk 0:02:32]}  O-O {[%clk 0:02:21]} 12. Nfd4 {[%clk 0:02:15]}  Bg6 {[%clk 0:02:12]} 13. Bh2 {[%clk 0:02:07]}  e5 {[%clk 0:02:10]} 14. Nxc6 {[%clk 0:02:06]}  bxc6 {[%clk 0:02:11]} 15. Bxe5 {[%clk 0:02:02]}  Rfe8 {[%clk 0:02:02]} 16. Bh2 {[%clk 0:01:58]}  Ne4 {[%clk 0:01:57]} 17. Qd4 {[%clk 0:01:27]}  Qb7 {[%clk 0:01:49]} 18. Rfd1 {[%clk 0:01:08]}  Bf6 {[%clk 0:01:48]} 19. Qa4 {[%clk 0:00:59]}  Rad8 {[%clk 0:01:43]} 20. Rac1 {[%clk 0:00:56]}  Qd7 {[%clk 0:01:38]} 21. Nd4 {[%clk 0:00:48]}  Bxd4 {[%clk 0:01:26]} 22. cxd4 {[%clk 0:00:49]}  Qf5 {[%clk 0:01:25]} 23. Rf1 {[%clk 0:00:45]}  Ng5 {[%clk 0:01:16]} 24. Bg4 {[%clk 0:00:43]}  Qe4 {[%clk 0:00:53]} 25. Qxc6 {[%clk 0:00:43]}  h5 {[%clk 0:00:50]} 26. Be2 {[%clk 0:00:33]}  Nxh3+ {[%clk 0:00:40]} 27. gxh3 {[%clk 0:00:33]}  Qh4 {[%clk 0:00:24]} 28. Qc7 {[%clk 0:00:23]}  Qxh3 {[%clk 0:00:19]} 29. Qg3 {[%clk 0:00:23]}  Qe6 {[%clk 0:00:18]} 30. Rc7 {[%clk 0:00:21]}  Rd6 {[%clk 0:00:15]} 31. Rfc1 {[%clk 0:00:20]}  Qe4 {[%clk 0:00:15]} 32. Qxd6 {[%clk 0:00:16]}  Re6 {[%clk 0:00:09]} 33. Qf4 {[%clk 0:00:16]}  Qxf4 {[%clk 0:00:06]} 34. Bxf4 {[%clk 0:00:17]} 1-0


[Site "https://www.chess.com"]

[Event "Titled Tuesday Blitz January 03 Late 2023"]
[White "Sariego Figueredo, Wilfredo"]
[Black "Oliveira, Tiago Batista"]
[WhiteFideId "3500080"]
[BlackFideId "2108291"]
[WhiteElo "2318"]
[BlackElo "1991"]
[Result "1-0"]
[Round "04"]
[TimeControl "180+2"]
[Date "2023.01.03"]
[WhiteClock "0:00:41"]
[BlackClock "0:00:06"]

1. d4 {[%clk 0:03:00]}  Nf6 {[%clk 0:02:58]} 2. Bf4 {[%clk 0:02:59]}  g6 {[%clk 0:02:57]} 3. Nc3 {[%clk 0:02:59]}  d6 {[%clk 0:02:51]} 4. e4 {[%clk 0:02:59]}  Bg7 {[%clk 0:02:50]} 5. Qd2 {[%clk 0:02:56]}  O-O {[%clk 0:02:49]} 6. O-O-O {[%clk 0:02:56]}  Nc6 {[%clk 0:02:32]} 7. Bh6 {[%clk 0:02:52]}  e5 {[%clk 0:02:26]} 8. Bxg7 {[%clk 0:02:47]}  Kxg7 {[%clk 0:02:26]} 9. dxe5 {[%clk 0:02:47]}  dxe5 {[%clk 0:02:22]} 10. Nd5 {[%clk 0:02:37]}  Nxe4 {[%clk 0:02:09]} 11. Qe3 {[%clk 0:02:21]}  Bf5 {[%clk 0:01:06]} 12. Nb6 {[%clk 0:01:37]}  axb6 {[%clk 0:00:38]} 13. Rxd8 {[%clk 0:01:34]}  Rfxd8 {[%clk 0:00:38]} 14. a3 {[%clk 0:01:12]}  Rd2 {[%clk 0:00:25]} 15. Bd3 {[%clk 0:01:07]}  Rd8 {[%clk 0:00:22]} 16. Nf3 {[%clk 0:00:49]}  Rxf2 {[%clk 0:00:10]} 17. Bxe4 {[%clk 0:00:44]}  Rxg2 {[%clk 0:00:06]} 18. Bxf5 {[%clk 0:00:41]} 1-0


[Site "https://www.chess.com"]

[Event "Titled Tuesday Blitz January 03 Late 2023"]
[White "Xiong, Jeffery"]
[Black "Vachier-Lagrave, Maxime"]
[WhiteFideId "2047640"]
[BlackFideId "623539"]
[WhiteElo "2692"]
[BlackElo "2742"]
[Result "1/2-1/2"]
[Round "05"]
[TimeControl "180+2"]
[Date "2023.01.03"]
[WhiteClock "0:00:49"]
[BlackClock "0:00:23"]

1. d4 {[%clk 0:02:59]}  Nf6 {[%clk 0:02:59]} 2. c4 {[%clk 0:03:00]}  e6 {[%clk 0:03:00]} 3. Nc3 {[%clk 0:03:00]}  Bb4 {[%clk 0:03:00]} 4. Nf3 {[%clk 0:03:00]}  d5 {[%clk 0:02:59]} 5. Qa4+ {[%clk 0:02:59]}  Nc6 {[%clk 0:03:00]} 6. e3 {[%clk 0:02:50]}  O-O {[%clk 0:02:59]} 7. Bd2 {[%clk 0:02:50]}  Re8 {[%clk 0:02:58]} 8. a3 {[%clk 0:02:46]}  Bf8 {[%clk 0:02:57]} 9. Rd1 {[%clk 0:02:47]}  Bd7 {[%clk 0:02:55]} 10. Qc2 {[%clk 0:02:46]}  e5 {[%clk 0:02:54]} 11. cxd5 {[%clk 0:02:26]}  Nxd4 {[%clk 0:02:51]} 12. exd4 {[%clk 0:02:26]}  exd4+ {[%clk 0:02:51]} 13. Ne2 {[%clk 0:02:27]}  c5 {[%clk 0:02:37]} 14. dxc6 {[%clk 0:02:28]}  Bxc6 {[%clk 0:02:37]} 15. Bg5 {[%clk 0:02:27]}  Be4 {[%clk 0:02:24]} 16. Qd2 {[%clk 0:02:05]}  d3 {[%clk 0:02:20]} 17. Be3 {[%clk 0:02:06]}  dxe2 {[%clk 0:01:52]} 18. Bxe2 {[%clk 0:02:05]}  Nd5 {[%clk 0:01:49]} 19. Bg5 {[%clk 0:01:23]}  Bxf3 {[%clk 0:01:05]} 20. Bxd8 {[%clk 0:01:18]}  Bxe2 {[%clk 0:01:05]} 21. Bg5 {[%clk 0:01:00]}  Ba6+ {[%clk 0:00:55]} 22. Be3 {[%clk 0:00:59]}  Nf4 {[%clk 0:00:52]} 23. Rg1 {[%clk 0:00:58]}  Rac8 {[%clk 0:00:46]} 24. Qd7 {[%clk 0:00:47]}  Rc2 {[%clk 0:00:41]} 25. Rd2 {[%clk 0:00:47]}  Rc1+ {[%clk 0:00:21]} 26. Rd1 {[%clk 0:00:48]}  Rc2 {[%clk 0:00:21]} 27. Rd2 {[%clk 0:00:48]}  Rc1+ {[%clk 0:00:22]} 28. Rd1 {[%clk 0:00:49]}  Rc2 {[%clk 0:00:23]} 1/2-1/2


[Site "https://www.chess.com"]